bitfinex-derivatives/quotes_ETHF0:USTF0_20260112
["timestamp","ask_amount","ask_price","bid_price","bid_amount"]
[1768182054093,0.82908347,3123.4,3122.3,0.21052274]
[1768182054294,0.82908347,3123.3,3122.4,0.98615832]
[1768182054488,0.98615832,3123.7,3122.5,0.20692546]
[1768182054678,0.82899433,3123.6,3122.5,0.20692546]
[1768182054886,0.82899433,3123.5,3122.5,0.20692546]
[1768182055184,0.82899433,3123.4,3122.5,0.20692546]
[1768182055383,0.82899433,3123.3,3122.5,0.20692546]
[1768182055692,0.82899433,3123.2,3122.5,0.20692546]
[1768182055988,0.98615832,3123.7,3122.5,0.20692546]
[1768182056185,0.98615832,3123.5,3122.5,0.20692546]
[1768182056493,0.98615832,3123.3,3122.5,0.20692546]
[1768182056786,0.82901303,3123.2,3122.5,0.20692546]
[1768182058587,0.82901303,3123.1,3122.5,0.20692546]
[1768182058793,0.82901303,3123.0,3122.5,0.20692546]
[1768182059091,0.82901303,3122.9,3122.5,0.20692546]
[1768182059292,0.98615832,3123.5,3122.5,0.20692546]
[1768182059492,0.82915589,3123.4,3122.5,0.20692546]
[1768182059794,0.82915589,3123.3,3122.5,0.20692546]
[1768182060090,0.82915589,3123.2,3122.5,0.20692546]
[1768182060293,0.82915589,3123.1,3122.5,0.20692546]
[1768182060493,0.82915589,3123.0,3122.5,0.20692546]
[1768182060694,0.82915589,3122.9,3122.5,0.20692546]
[1768182060895,0.98615832,3123.7,3122.5,0.20692546]
[1768182061192,0.98615832,3123.5,3122.5,0.20692546]
[1768182061397,0.98615832,3123.3,3122.5,0.20692546]
[1768182061588,0.82918952,3123.2,3122.3,0.00359728]
[1768182062289,0.82918952,3123.2,3122.3,0.21052274]
[1768182062494,0.82918952,3123.1,3122.3,0.21052274]
[1768182062682,0.82918952,3123.0,3122.3,0.21052274]
[1768182062885,0.82918952,3122.9,3122.3,0.21052274]
[1768182063087,0.98615832,3123.5,3122.3,0.21052274]
[1768182063294,0.82928859,3123.4,3122.3,0.21052274]
[1768182063493,0.82928859,3123.3,3122.3,0.21052274]
[1768182063794,0.82928859,3123.2,3122.3,0.21052274]
[1768182063994,0.82928859,3123.1,3122.3,0.21052274]
[1768182064294,0.82928859,3123.0,3122.3,0.21052274]
[1768182064493,0.98615832,3123.5,3122.3,0.21052274]
[1768182064494,0.82928859,3122.9,3122.3,0.21052274]
[1768182064694,0.98615832,3123.5,3122.3,0.21052274]
[1768182064895,0.82934145,3123.4,3122.3,0.21052274]
[1768182065087,0.82934145,3123.3,3122.3,0.21052274]
[1768182065287,0.98615832,3123.5,3122.3,0.21052274]
[1768182065288,0.82934145,3123.2,3122.3,0.21052274]
[1768182065587,0.82934145,3123.1,3122.3,0.21052274]
[1768182065783,0.82934145,3123.0,3122.3,0.21052274]
[1768182065988,0.82934145,3122.9,3122.3,0.21052274]
[1768182066188,0.98615832,3123.5,3122.3,0.21052274]
[1768182066389,0.82942029,3123.4,3122.3,0.21052274]
[1768182066696,0.82942029,3123.3,3122.3,0.21052274]
[1768182066897,0.82942029,3123.2,3122.3,0.21052274]
[1768182067099,0.82942029,3123.1,3122.3,0.21052274]
[1768182067395,1.81565418,3123.0,3122.3,0.00359728]
[1768182067588,0.82949586,3122.9,3122.3,0.00359728]
[1768182070198,0.82949586,3122.9,3122.3,0.22697202]
[1768182070407,0.98615832,3123.5,3122.6,0.22337474]
[1768182070700,0.82917994,3123.4,3122.3,0.00359728]
[1768182070904,0.82917994,3123.3,3122.3,0.00359728]
[1768182071088,0.82917994,3123.2,3122.3,0.00359728]
[1768182071293,0.82917994,3123.1,3122.3,0.00359728]
[1768182071496,0.98615832,3123.5,3122.3,0.00359728]
[1768182071694,0.98615832,3123.1,3122.3,0.00359728]
[1768182071895,0.82919268,3123.0,3122.3,0.00359728]
[1768182072595,0.98615832,3123.3,3122.3,0.00359728]
[1768182072796,0.8292121,3123.2,3122.3,0.00359728]
[1768182072997,0.8292121,3123.1,3122.3,0.00359728]
[1768182073297,0.8292121,3123.0,3122.3,0.00359728]
[1768182073498,0.8292121,3122.9,3122.3,0.00359728]
[1768182073801,0.98615832,3123.3,3122.3,0.00359728]
[1768182074006,0.82919791,3123.2,3122.3,0.00359728]
[1768182074204,0.82919791,3123.1,3122.3,0.00359728]
[1768182074406,0.82919791,3123.0,3122.3,0.00359728]
[1768182074606,0.82919791,3122.9,3122.3,0.00359728]
[1768182074806,0.98615832,3123.3,3122.3,0.00359728]
[1768182075012,0.82918976,3123.2,3122.3,0.00359728]
[1768182075205,0.82918976,3123.1,3122.3,0.00359728]
[1768182075405,0.82918976,3123.0,3122.3,0.00359728]
[1768182075701,0.82918976,3122.9,3122.3,0.00359728]
[1768182075904,0.16029,3123.6,3122.3,0.00359728]
[1768182076103,0.82918637,3123.5,3122.3,0.00359728]
[1768182076303,0.82918637,3123.4,3122.3,0.00359728]
[1768182076502,0.82918637,3123.3,3122.3,0.00359728]
[1768182076703,0.82918637,3123.2,3121.8,1.47657474]
[1768182076908,0.82918637,3123.2,3121.9,0.22337474]
[1768182077809,0.82918637,3123.2,3121.9,0.22585955]
[1768182081811,0.82918637,3123.1,3121.9,0.22585955]
[1768182082108,0.82918637,3123.0,3121.9,0.22585955]
[1768182082313,0.82918637,3122.9,3121.9,0.22585955]
[1768182082604,0.1603,3123.5,3121.9,0.22585955]
[1768182082811,0.82971446,3123.4,3121.9,0.22585955]
[1768182083005,0.82971446,3123.3,3121.9,0.22585955]
[1768182083213,0.82971446,3123.2,3121.9,0.22585955]
[1768182083418,0.82971446,3123.1,3121.9,0.22585955]
[1768182083611,0.82971446,3123.0,3121.9,0.22585955]
[1768182083815,0.16028,3123.8,3121.9,0.22585955]
[1768182084107,1.15514745,3123.7,3121.9,0.22585955]
[1768182084318,1.15514745,3123.6,3121.9,0.22585955]
[1768182084514,0.82967985,3123.5,3121.9,0.22585955]
[1768182084815,1.15514806,3123.4,3121.9,0.22585955]
[1768182085021,0.82967985,3123.3,3121.9,0.22585955]
[1768182085218,0.82967985,3123.2,3121.9,0.22585955]
[1768182085420,0.82967985,3123.1,3121.9,0.22585955]
[1768182085613,0.82967985,3123.0,3121.9,0.22585955]
[1768182085812,0.16028,3123.8,3121.9,0.22585955]
[1768182086021,1.1552018,3123.7,3121.9,0.22585955]
[1768182086321,1.1552018,3123.6,3121.9,0.22585955]
[1768182086621,1.1552018,3123.5,3121.9,0.22585955]
[1768182086916,1.1552018,3123.4,3121.9,0.22585955]
[1768182087119,0.82971829,3123.3,3121.9,0.22585955]
[1768182087308,0.82971829,3123.2,3121.9,0.22585955]
[1768182087513,0.82971829,3123.1,3121.9,0.22585955]
[1768182087713,0.82971829,3123.0,3121.9,0.22585955]
[1768182087916,0.16028,3123.8,3121.9,0.22585955]
[1768182088220,1.1552866,3123.7,3121.9,0.22585955]
[1768182088419,1.1552866,3123.6,3121.9,0.22585955]
[1768182088620,1.1552866,3123.5,3121.9,0.22585955]
[1768182088819,1.1552866,3123.4,3121.9,0.22585955]
[1768182089020,0.82977923,3123.3,3121.9,0.22585955]
[1768182089220,0.82977923,3123.2,3121.9,0.22585955]
[1768182089420,0.82977923,3123.1,3121.9,0.22585955]
[1768182089622,0.82977923,3123.0,3121.9,0.22585955]
[1768182089823,0.82977923,3122.9,3121.9,0.22585955]
[1768182090122,0.16028,3123.8,3121.9,0.22585955]
[1768182090323,1.15541793,3123.7,3121.9,0.22585955]
[1768182090524,1.15541793,3123.6,3121.9,0.22585955]
[1768182090722,1.15541793,3123.5,3121.9,0.22585955]
[1768182091022,1.15541793,3123.4,3121.9,0.22585955]
[1768182091224,0.8298736,3123.3,3121.9,0.22585955]
[1768182091423,0.8298736,3123.2,3121.9,0.22585955]
[1768182091624,0.8298736,3123.1,3121.9,0.22585955]
[1768182091921,0.8298736,3123.0,3121.9,0.22585955]
[1768182092122,0.8298736,3122.9,3121.9,0.22585955]
[1768182092324,1.1469574,3123.8,3121.9,0.22585955]
[1768182092519,1.15554105,3123.7,3121.9,0.22585955]
[1768182092723,1.15554105,3123.6,3121.9,0.22585955]
[1768182092917,1.15554105,3123.5,3121.9,0.22585955]
[1768182093117,1.15554105,3123.4,3121.9,0.22585955]
[1768182093317,0.82996182,3123.3,3121.9,0.22585955]
[1768182093517,0.82996182,3123.2,3121.9,0.22585955]
[1768182093812,0.82996182,3123.1,3121.9,0.22585955]
[1768182094016,0.82996182,3123.0,3121.9,0.22585955]
[1768182094219,0.82996182,3122.9,3121.9,0.22585955]
[1768182094424,1.1469574,3123.8,3121.9,0.22585955]
[1768182094627,1.15572073,3123.7,3121.9,0.22585955]
[1768182094922,1.15572073,3123.6,3121.9,0.22585955]
[1768182095125,1.15572073,3123.5,3121.9,0.22585955]
[1768182095315,0.83009084,3123.4,3121.9,0.22585955]
[1768182095519,0.83009084,3123.3,3121.9,0.22585955]
[1768182095726,0.83009084,3123.2,3121.9,0.22585955]
[1768182096028,0.83009084,3123.1,3121.9,0.22585955]
[1768182096229,0.83009084,3123.0,3121.9,0.22585955]
[1768182096529,0.83009084,3122.9,3121.9,0.22585955]
[1768182096831,0.16029,3123.7,3121.9,0.22585955]
[1768182097023,0.32569212,3123.6,3121.9,0.22585955]
[1768182097221,1.15594134,3123.5,3121.9,0.22585955]
[1768182097525,0.83024922,3123.4,3121.9,0.22585955]
[1768182097713,0.83024922,3123.3,3121.9,0.22585955]
[1768182097918,0.83024922,3123.2,3121.9,0.22585955]
[1768182098117,0.83024922,3123.1,3121.9,0.22585955]
[1768182098318,0.83024922,3123.0,3121.9,0.22585955]
[1768182098518,0.83024922,3122.9,3121.9,0.22585955]
[1768182098725,0.83024922,3122.8,3121.9,0.22585955]
[1768182098927,0.83024922,3122.7,3122.0,0.22104782]
[1768182099127,0.83024922,3122.6,3122.0,0.22104782]
[1768182099320,2.84866489,3123.6,3122.0,0.22104782]
[1768182099523,0.32575665,3123.5,3122.0,0.22104782]
[1768182099826,0.83041322,3123.4,3122.0,0.22104782]
[1768182100027,0.83041322,3123.3,3122.0,0.22104782]
[1768182100329,0.83041322,3123.2,3122.0,0.22104782]
[1768182100523,0.83041322,3123.1,3122.0,0.22104782]
[1768182100727,0.83041322,3123.0,3122.0,0.22104782]
[1768182100927,0.83041322,3122.9,3122.0,0.22104782]
[1768182101232,0.83041322,3122.8,3122.0,0.22104782]
[1768182101423,0.83041322,3122.7,3122.0,0.22104782]
[1768182101729,0.83041322,3122.6,3122.0,0.22104782]
[1768182102027,2.84866489,3123.6,3122.0,0.22104782]
[1768182102229,0.32580088,3123.5,3122.0,0.22104782]
[1768182102428,1.15632621,3123.4,3122.0,0.22104782]
[1768182102627,0.83052533,3123.3,3122.0,0.22104782]
[1768182102827,0.83052533,3123.2,3122.0,0.22104782]
[1768182103027,0.83052533,3123.1,3122.0,0.22104782]
[1768182103326,0.83052533,3123.0,3122.0,0.22104782]
[1768182103626,0.83052533,3122.9,3122.0,0.22104782]
[1768182103822,0.83052533,3122.8,3122.0,0.22104782]
[1768182104026,0.83052533,3122.7,3122.0,0.22104782]
[1768182104227,0.83052533,3122.6,3122.0,0.22104782]
[1768182104424,2.84866489,3123.6,3122.0,0.22104782]
[1768182104730,0.32580166,3123.5,3122.0,0.22104782]
[1768182104921,1.15632849,3123.4,3122.0,0.22104782]
[1768182105122,0.83052683,3123.3,3122.0,0.22104782]
[1768182105430,0.83052683,3123.2,3122.0,0.22104782]
[1768182105628,3.00895489,3123.6,3122.0,0.22104782]
[1768182105629,0.83052683,3123.1,3122.0,0.22104782]
[1768182105828,0.83052683,3123.0,3122.0,0.22104782]
[1768182106021,0.83052683,3122.9,3122.0,0.22104782]
[1768182106225,0.83052683,3122.8,3122.1,1.2789]
[1768182106525,0.83052683,3122.7,3122.1,1.2789]
[1768182106725,0.83052683,3122.6,3122.2,0.22104782]
[1768182106930,3.00895489,3123.6,3122.2,0.22104782]
[1768182107130,1.15633697,3123.5,3122.2,0.22104782]
[1768182107332,1.15633697,3123.4,3122.2,0.22104782]
[1768182107531,0.8305329,3123.3,3122.2,0.22104782]
[1768182107731,0.8305329,3123.2,3122.2,0.22104782]
[1768182107929,0.8305329,3123.1,3122.2,0.22104782]
[1768182108235,0.8305329,3123.0,3122.2,0.22104782]
[1768182108425,0.8305329,3122.9,3122.2,0.22104782]
[1768182108626,0.8305329,3122.8,3122.2,0.22104782]
[1768182108826,2.84866489,3124.0,3122.5,0.22104782]
[1768182109033,0.32580065,3123.9,3122.5,0.22104782]
[1768182109230,0.32580065,3123.8,3122.5,0.22104782]
[1768182109427,0.83052425,3123.7,3122.5,0.22104782]
[1768182109630,0.83052425,3123.6,3122.5,0.22104782]
[1768182109831,0.83052425,3123.5,3122.5,0.22104782]
[1768182110134,0.83052425,3123.4,3122.5,0.22104782]
[1768182110339,0.83052425,3123.3,3122.5,0.22104782]
[1768182110637,0.00239398,3124.1,3122.5,0.22104782]
[1768182110834,0.82576794,3124.0,3122.5,0.22104782]
[1768182111138,0.82576794,3123.9,3122.5,0.22104782]
[1768182111340,0.82576794,3123.8,3122.5,0.22104782]
[1768182111527,0.82576794,3123.7,3122.5,0.22104782]
[1768182111730,0.82576794,3123.6,3122.5,0.22104782]
[1768182111931,0.82576794,3123.5,3122.5,0.22104782]
[1768182112131,0.00239398,3124.1,3122.5,0.22104782]
[1768182112333,0.82522577,3124.0,3122.5,0.22104782]
[1768182112535,0.82522577,3123.9,3122.7,0.22104782]
[1768182112731,0.82522577,3123.8,3122.7,0.22104782]
[1768182112938,0.82522577,3123.7,3122.7,0.22104782]
[1768182113138,0.82522577,3123.6,3122.7,0.22104782]
[1768182113339,0.00239398,3124.1,3122.7,0.22104782]
[1768182113535,0.82491796,3124.0,3122.7,0.22104782]
[1768182113735,0.82491796,3123.9,3122.7,0.22104782]
[1768182113933,0.82491796,3123.8,3122.7,0.22104782]
[1768182114140,0.82491796,3123.7,3122.7,0.22104782]
[1768182114434,0.00239398,3124.1,3122.7,0.22104782]
[1768182114640,0.8247006,3124.0,3122.7,0.22104782]
[1768182114840,0.8247006,3123.9,3122.7,0.22104782]
[1768182115042,0.8247006,3123.8,3122.7,0.22104782]
[1768182115341,0.8247006,3123.7,3122.7,0.22104782]
[1768182115644,0.00239398,3124.1,3122.7,0.22104782]
[1768182115838,0.8245274,3124.0,3122.7,0.22104782]
[1768182116038,0.8245274,3123.9,3122.7,0.22104782]
[1768182116240,0.8245274,3123.8,3122.7,0.22104782]
[1768182116443,0.8245274,3123.7,3122.7,0.22104782]
[1768182116644,0.00239398,3124.1,3122.7,0.22104782]
[1768182116839,0.82438255,3124.0,3122.7,0.22104782]
[1768182117043,0.82438255,3123.9,3122.7,0.22104782]
[1768182117347,0.82438255,3123.8,3122.7,0.22104782]
[1768182117550,0.82438255,3123.7,3122.7,0.22104782]
[1768182117737,0.00239398,3124.1,3122.7,0.22104782]
[1768182118042,0.824262,3124.0,3122.7,0.22104782]
[1768182118243,0.824262,3123.9,3122.7,0.22104782]
[1768182118543,0.824262,3123.8,3122.7,0.22104782]
[1768182118733,0.00239398,3124.1,3122.7,0.22104782]
[1768182118936,0.82415798,3124.0,3122.7,0.22104782]
[1768182119137,0.82415798,3123.9,3122.7,0.22104782]
[1768182119334,0.82415798,3123.8,3122.7,0.22104782]
[1768182119540,0.00239398,3124.1,3123.1,0.22104782]
[1768182119840,0.82403672,3124.0,3123.1,0.22104782]
[1768182120048,0.00239398,3124.1,3123.1,0.22104782]
[1768182120241,0.82402886,3124.0,3123.1,0.22104782]
[1768182120540,0.00239398,3124.1,3123.1,0.22104782]
[1768182120738,0.82400896,3124.0,3123.1,0.22104782]
[1768182120938,0.00239398,3124.1,3123.1,0.22104782]
[1768182121145,0.8240089,3124.0,3123.1,0.22104782]
[1768182121347,0.00239398,3124.1,3123.1,0.22104782]
[1768182121646,0.82384688,3124.0,3123.1,0.22104782]
[1768182121843,0.00239398,3124.1,3123.1,0.22104782]
[1768182122047,0.82384702,3124.0,3123.1,0.22104782]
[1768182122248,0.00239398,3124.1,3123.1,0.22104782]
[1768182122450,0.82371648,3124.0,3123.1,0.22104782]
[1768182122651,0.00239398,3124.1,3123.1,0.22104782]
[1768182122850,0.82371628,3124.0,3123.1,0.22104782]
[1768182123052,0.00239398,3124.1,3123.1,0.22104782]
[1768182123252,0.8237135,3124.0,3123.1,0.22104782]
[1768182123551,0.00239398,3124.1,3123.1,0.22104782]
[1768182123751,0.82361013,3124.0,3123.1,0.22104782]
[1768182123951,0.00239398,3124.1,3123.1,0.22104782]
[1768182124152,0.82361026,3124.0,3123.1,0.22104782]
[1768182124353,0.00239398,3124.1,3122.6,0.22466045]
[1768182124558,0.82353203,3124.0,3122.6,0.22466045]
[1768182124849,0.82353203,3123.9,3122.6,0.22466045]
[1768182125048,0.00239398,3124.1,3122.6,0.22466045]
[1768182125250,0.82356532,3124.0,3122.6,0.22466045]
[1768182125452,0.82356532,3123.9,3122.7,1.0446]
[1768182125651,0.00239398,3124.1,3122.7,1.26926045]
[1768182125853,0.82354712,3124.0,3122.7,1.26926045]
[1768182126051,0.82354712,3123.9,3122.7,1.26926045]
[1768182126353,0.00239398,3124.1,3122.7,1.26926045]
[1768182126655,0.82354516,3124.0,3122.7,1.26926045]
[1768182126846,0.82354516,3123.9,3122.7,1.26926045]
[1768182127052,0.00239398,3124.1,3122.7,1.26926045]
[1768182127248,0.82354508,3124.0,3122.7,1.26926045]
[1768182127450,0.00239398,3124.1,3122.7,1.26926045]
[1768182127649,0.82356027,3124.0,3122.8,0.22466045]
[1768182127849,0.00239398,3124.1,3122.8,0.22466045]
[1768182128049,0.82356027,3124.0,3122.8,0.22466045]
[1768182128355,0.00239398,3124.1,3122.8,0.22466045]
[1768182128656,0.82359023,3124.0,3122.8,0.22466045]
[1768182128852,0.00239398,3124.1,3122.8,0.22466045]
[1768182129157,0.82359023,3124.0,3122.8,0.22466045]
[1768182129357,0.00239398,3124.1,3122.8,0.22466045]
[1768182129556,0.82363755,3124.0,3122.8,0.22466045]
[1768182129858,0.00239398,3124.1,3122.8,0.22466045]
[1768182130048,0.82363759,3124.0,3122.8,0.22466045]
[1768182130253,0.00239398,3124.1,3122.8,0.22466045]
[1768182130457,0.82370444,3124.0,3122.8,0.22466045]
[1768182130654,0.00239398,3124.1,3122.8,0.22466045]
[1768182130859,0.82370387,3124.0,3122.9,0.21226834]
[1768182131055,0.00239398,3124.1,3122.9,0.21226834]
[1768182134357,0.00239398,3124.1,3123.3,0.21226834]
[1768182136059,0.21593712,3125.3,3123.7,0.21226834]
[1768182136263,0.82409515,3125.2,3123.7,0.21226834]
[1768182136460,0.82409515,3125.1,3123.7,0.21226834]
[1768182136661,0.82409515,3125.0,3123.7,0.21226834]
[1768182136857,0.82409515,3124.9,3123.7,0.21226834]
[1768182137052,0.82409515,3124.8,3123.7,0.21226834]
[1768182137257,0.00260962,3124.9,3123.7,0.21226834]
[1768182137469,0.82387124,3124.8,3123.9,0.98547813]
[1768182137774,0.00260962,3124.9,3123.9,1.19774647]
[1768182138071,0.82387115,3124.8,3123.9,1.19774647]
[1768182138366,0.00260962,3124.9,3123.9,1.19774647]
[1768182138555,0.82388169,3124.8,3123.9,1.19774647]
[1768182138759,0.00260962,3124.9,3123.9,1.19774647]
[1768182138953,0.82388183,3124.8,3123.9,1.19774647]
[1768182139153,0.00260962,3124.9,3123.9,1.19774647]
[1768182139358,0.82375156,3124.8,3123.9,1.19774647]
[1768182139552,0.00260962,3124.9,3123.9,1.19774647]
[1768182139764,0.82375162,3124.8,3123.9,1.19774647]
[1768182139968,0.00260962,3124.9,3123.9,1.19774647]
[1768182140161,0.82375248,3124.8,3123.9,1.19774647]
[1768182140361,0.00260962,3124.9,3123.9,1.19774647]
[1768182140570,0.82189007,3124.8,3123.9,1.19774647]
[1768182140762,0.98547813,3124.1,3123.1,0.21226834]
[1768182141064,0.98547813,3123.9,3122.7,0.21226834]
[1768182141262,0.82211678,3123.8,3122.7,0.21226834]
[1768182141464,0.82211678,3123.7,3122.7,0.21226834]
[1768182141662,0.98547813,3123.9,3122.7,0.21226834]
[1768182141855,0.82214946,3123.8,3122.7,1.19774647]
[1768182142060,0.98547813,3124.1,3122.7,1.19774647]
[1768182142255,0.82215068,3124.0,3122.7,1.19774647]
[1768182142462,0.82215068,3123.9,3122.8,0.21226834]
[1768182142669,0.82215068,3123.8,3122.8,0.21226834]
[1768182142871,0.98547813,3124.1,3122.8,0.21226834]
[1768182143068,0.82216402,3124.0,3122.8,0.21226834]
[1768182143263,0.82216402,3123.9,3122.8,0.21226834]
[1768182143462,0.82216402,3123.8,3122.8,0.21226834]
[1768182143668,0.98547813,3124.1,3122.9,1.1101]
[1768182143868,0.82214332,3124.0,3122.9,1.1101]
[1768182144068,0.82214332,3123.9,3122.9,1.1101]
[1768182144371,0.82214332,3123.8,3122.9,1.1101]
[1768182144671,0.98547813,3124.1,3122.9,1.1101]
[1768182144871,0.82212594,3124.0,3122.9,1.1101]
[1768182145072,0.82212594,3123.9,3122.9,1.1101]
[1768182145270,0.82212594,3123.8,3122.9,1.1101]
[1768182145470,0.98547813,3124.1,3122.9,1.1101]
[1768182145671,0.82210692,3124.0,3122.9,1.1101]
[1768182145876,0.82210692,3123.9,3122.9,2.09557813]
[1768182146167,0.82210692,3123.8,3122.9,2.30784647]
[1768182146367,0.98547813,3124.1,3122.9,2.30784647]
[1768182146569,0.82208789,3124.0,3122.9,2.30784647]
[1768182146770,0.82208789,3123.9,3122.9,2.30784647]
[1768182147073,0.82208789,3123.8,3122.9,2.30784647]
[1768182147270,0.82208789,3123.7,3122.9,2.30784647]
[1768182147469,0.82208789,3123.6,3122.9,2.30784647]
[1768182147671,0.82208789,3123.5,3122.9,2.30784647]
[1768182147967,0.98547813,3124.1,3122.9,2.30784647]
[1768182148171,0.82206988,3124.0,3122.9,2.30784647]
[1768182148374,0.82206988,3123.9,3122.9,2.30784647]
[1768182148674,0.39659414,3123.8,3123.4,0.21226834]
[1768182148869,0.39659414,3123.8,3123.0,0.98547813]
[1768182148870,3.01150451,3124.9,3123.7,1.19774647]
[1768182149170,0.00260962,3124.9,3124.0,0.21226834]
[1768182149368,2.84866489,3125.3,3124.6,0.98547813]
[1768182149563,2.84866489,3125.8,3124.7,0.21226834]
[1768182149764,0.32677573,3125.7,3124.8,0.98547813]
[1768182149964,6.05466489,3125.9,3124.8,0.98547813]
[1768182149965,2.84866489,3125.9,3125.3,0.21226834]
[1768182150175,2.38747813,3126.4,3125.0,0.98547813]
[1768182150372,2.39061514,3126.4,3125.0,0.98772716]
[1768182150779,0.00313701,3126.4,3125.2,0.98547813]
[1768182151075,0.00313701,3126.4,3125.4,0.98547813]
[1768182151281,0.00313701,3126.4,3125.0,0.00224903]
[1768182151468,0.00313701,3126.4,3125.3,0.98547813]
[1768182153378,0.00313701,3126.4,3125.1,0.21226834]
[1768182156680,0.00313701,3126.4,3125.0,0.00224903]
[1768182156878,0.22279899,3126.4,3125.0,0.00224903]
[1768182157580,0.00313701,3126.4,3125.0,0.00224903]
[1768182159277,0.00313701,3126.4,3125.0,0.20860691]
[1768182160778,0.81200829,3126.3,3125.0,0.20860691]
[1768182160978,0.81200829,3126.2,3125.0,0.20860691]
[1768182161175,0.00313701,3126.4,3125.0,0.20860691]
[1768182161375,0.8119459,3126.3,3125.0,0.20860691]
[1768182161582,0.8119459,3126.2,3125.0,0.20860691]
[1768182161783,0.00313701,3126.4,3125.0,0.20860691]
[1768182161978,0.8119459,3126.3,3125.0,0.20860691]
[1768182162289,0.8119459,3126.2,3125.0,0.20860691]
[1768182162582,0.00313701,3126.4,3125.0,0.20860691]
[1768182162773,0.81190589,3126.3,3125.0,0.20860691]
[1768182162976,0.81190589,3126.2,3125.0,0.20860691]
[1768182163189,0.00313701,3126.4,3125.0,0.20860691]
[1768182163190,0.22279899,3126.4,3125.0,0.00224903]
[1768182163388,0.8119264,3126.3,3125.0,0.00224903]
[1768182163688,0.8119264,3126.2,3125.0,0.00224903]
[1768182163885,0.22279899,3126.4,3125.0,0.00224903]
[1768182164092,0.81193189,3126.3,3125.0,0.00224903]
[1768182164393,0.81193189,3126.2,3125.0,0.00224903]
[1768182164589,0.81196713,3126.1,3125.0,0.00224903]
[1768182164790,0.22279899,3126.4,3125.0,0.00224903]
[1768182164991,0.81196722,3126.3,3125.0,0.00224903]
[1768182165192,0.81196722,3126.2,3125.0,0.00224903]
[1768182165489,0.81196722,3126.1,3125.0,0.00224903]
[1768182165696,0.38294899,3126.4,3125.0,0.00224903]
[1768182165895,0.81200206,3126.3,3125.0,0.00224903]
[1768182166096,0.81200206,3126.2,3125.0,0.00224903]
[1768182166298,0.81200206,3126.1,3125.0,0.00224903]
[1768182166500,0.38294899,3126.4,3125.0,0.00224903]
[1768182166697,0.81197347,3126.3,3125.0,0.00224903]
[1768182166893,0.38294899,3126.4,3125.0,0.00224903]
[1768182167094,0.81197323,3126.3,3125.0,0.00224903]
[1768182167291,0.38294899,3126.4,3125.0,0.00224903]
[1768182167494,1.03160227,3126.3,3125.0,0.00224903]
[1768182167800,1.03160227,3126.3,3124.2,0.20635788]
[1768182167801,0.21966198,3126.0,3124.2,0.20635788]
[1768182168092,0.21966198,3125.8,3124.2,0.20635788]
[1768182168298,0.16018,3125.7,3124.2,0.20635788]
[1768182168487,0.37984198,3125.7,3123.4,0.20635788]
[1768182168899,0.37984198,3125.7,3123.4,0.20956714]
[1768182169394,0.16018,3125.7,3123.7,0.20635788]
[1768182173396,0.81172807,3125.6,3123.7,0.20635788]
[1768182173596,0.16018,3125.7,3123.7,0.20635788]
[1768182173898,0.81172807,3125.6,3123.7,0.20635788]
[1768182174101,0.16018,3125.7,3123.7,0.20635788]
[1768182174302,0.81218263,3125.6,3123.7,0.20635788]
[1768182174501,0.16018,3125.7,3123.7,0.20635788]
[1768182174804,0.81218262,3125.6,3123.7,0.20635788]
[1768182174993,0.16018,3125.7,3123.7,0.20635788]
[1768182175196,0.81218262,3125.6,3123.7,0.20635788]
[1768182175397,1.79743966,3125.5,3124.2,1.19161492]
[1768182175603,0.98525704,3125.5,3124.3,0.20635788]
[1768182178305,0.8150095,3125.4,3124.3,0.20635788]
[1768182178501,0.98525704,3125.5,3124.3,0.20635788]
[1768182178701,0.81500948,3125.4,3124.3,0.20635788]
[1768182178898,0.98525704,3125.3,3124.3,0.20635788]
[1768182180512,0.98525704,3125.5,3124.3,0.20635788]
[1768182180810,0.81545565,3125.4,3124.3,0.20635788]
[1768182181110,0.98525704,3125.5,3124.3,0.20635788]
[1768182181298,0.81545538,3125.4,3124.3,0.20635788]
[1768182181498,0.98525704,3125.5,3124.3,0.20635788]
[1768182181704,0.81545061,3125.4,3124.3,0.20635788]
[1768182182007,0.98525704,3125.5,3124.3,0.20635788]
[1768182182207,0.81545474,3125.4,3124.3,0.20635788]
[1768182182408,0.98525704,3125.5,3124.3,0.20635788]
[1768182182611,0.81549533,3125.4,3124.3,0.20635788]
[1768182182813,0.98525704,3125.5,3124.3,0.20635788]
[1768182183000,0.81547473,3125.4,3124.3,0.20635788]
[1768182183200,0.98525704,3125.5,3124.3,0.20635788]
[1768182183404,0.815538,3125.4,3124.3,0.20635788]
[1768182183604,0.98525704,3125.5,3124.3,0.20635788]
[1768182183812,0.81554757,3125.4,3124.3,0.20635788]
[1768182184009,0.98525704,3125.5,3124.3,0.20635788]
[1768182184214,0.81555246,3125.4,3124.3,0.20635788]
[1768182184402,0.98525704,3125.5,3124.3,0.20635788]
[1768182184601,0.81564229,3125.4,3124.3,0.20635788]
[1768182184806,1.14543704,3125.7,3124.3,0.20635788]
[1768182185006,0.98525704,3125.5,3124.3,0.20635788]
[1768182185210,0.81563832,3125.4,3124.3,0.20635788]
[1768182185711,0.98525704,3125.6,3124.3,0.20635788]
[1768182185914,0.81574741,3125.5,3124.3,0.20635788]
[1768182186213,0.81574741,3125.4,3124.3,0.20635788]
[1768182186410,0.81574741,3125.3,3124.3,0.20635788]
[1768182186612,0.98525704,3125.6,3124.3,0.20635788]
[1768182186814,0.81587782,3125.5,3124.3,0.20635788]
[1768182187009,0.81587782,3125.4,3124.3,0.20635788]
[1768182187213,0.81587782,3125.3,3124.3,0.20635788]
[1768182187414,0.98525704,3125.6,3124.4,1.1736]
[1768182187611,0.81591907,3125.5,3124.4,1.1736]
[1768182187914,0.81591907,3125.4,3124.8,1.19660601]
[1768182188119,1.4,3126.0,3125.1,0.21134897]
[1768182188320,0.81592845,3125.9,3124.8,0.98525704]
[1768182188618,0.81592845,3125.8,3124.8,0.98525704]
[1768182188820,0.81592845,3125.7,3125.0,0.98525704]
[1768182189021,0.98839405,3126.4,3124.8,0.21134897]
[1768182189022,0.00313701,3126.4,3125.2,0.98525704]
[1768182189219,0.8158813,3126.3,3125.0,1.19660601]
[1768182189516,0.8158813,3126.2,3125.0,1.19660601]
[1768182189715,0.8158813,3126.1,3125.0,1.19660601]
[1768182189919,0.8158813,3126.0,3125.0,1.19660601]
[1768182190123,0.8158813,3125.9,3125.0,1.19660601]
[1768182190322,0.98839405,3126.4,3125.1,0.23022037]
[1768182190519,0.81586864,3126.3,3125.1,0.23022037]
[1768182190725,0.81586864,3126.2,3125.1,0.23022037]
[1768182190916,0.81586864,3126.1,3125.1,0.23022037]
[1768182191111,0.81586864,3126.0,3125.1,0.23022037]
[1768182191319,0.81586864,3125.9,3125.1,0.23022037]
[1768182191625,0.98839405,3126.4,3125.1,0.23022037]
[1768182191823,0.81586218,3126.3,3125.1,0.23022037]
[1768182192020,0.81586218,3126.2,3125.1,0.23022037]
[1768182192221,0.81586218,3126.1,3125.1,0.23022037]
[1768182192416,0.81586218,3126.0,3125.1,0.23022037]
[1768182192612,0.81586218,3125.9,3125.1,0.23022037]
[1768182192824,0.98525704,3126.2,3125.1,0.23022037]